bitfinex-derivatives/quotes_ETHF0:USTF0_20230105
["timestamp","ask_amount","ask_price","bid_price","bid_amount"]
[1672960299212,7.87018624,1251.1,1251.0,2.5]
[1672960299842,5.37018624,1251.1,1251.0,2.5]
[1672960300054,5.4834368,1251.1,1251.0,2.5]
[1672960300684,2.9834368,1251.1,1251.0,2.5]
[1672960301001,2.38724821,1251.1,1251.0,2.5]
[1672960301213,4.88724821,1251.1,1251.0,2.5]
[1672960301842,2.5,1251.0,1250.9,3.69535323]
[1672960302052,4.88719293,1251.0,1250.9,3.69535323]
[1672960305420,2.38719293,1251.0,1250.9,3.69535323]
[1672960305734,2.38719293,1251.0,1250.9,1.19535323]
[1672960305950,8.57842973,1251.0,1250.8,3.69535323]
[1672960306152,4.88766401,1250.9,1250.8,1.19535323]
[1672960307418,7.87110081,1250.9,1250.8,1.19535323]
[1672960307629,5.4834368,1250.9,1250.7,5.48838308]
[1672960307840,2.38784253,1250.8,1250.7,5.48838308]
[1672960308154,7.87127933,1250.9,1250.7,5.48838308]
[1672960308362,2.38784393,1250.8,1250.7,5.48838308]
[1672960309215,2.38784393,1250.8,1250.7,2.98838308]
[1672960312251,2.9834368,1250.8,1250.6,1.19535323]
[1672960312567,5.59606393,1250.7,1250.6,1.19535323]
[1672960312881,4.88826393,1250.7,1250.6,1.79302985]
[1672960313198,4.88826393,1250.7,1250.6,5.49001524]
[1672960314772,4.88826393,1250.7,1250.6,6.6869821]
[1672960315933,4.88826393,1250.7,1250.6,5.49001524]
[1672960316136,4.88826393,1250.7,1250.6,6.68699791]
[1672960320136,2.38826393,1250.7,1250.6,6.68699791]
[1672960321294,4.88826393,1250.7,1250.6,6.68699791]
[1672960321718,4.88826393,1250.7,1250.6,4.18699791]
[1672960321921,4.88826393,1250.7,1250.6,2.39396806]
[1672960324341,2.38826393,1250.7,1250.6,4.89396806]
[1672960325078,2.38826393,1250.7,1250.6,2.39396806]
[1672960325287,4.88826393,1250.7,1250.6,2.39396806]
[1672960325710,4.88826393,1250.7,1250.6,4.89396806]
[1672960326024,2.38826393,1250.7,1250.6,4.89396806]
[1672960327595,4.88826393,1250.7,1250.6,2.39396806]
[1672960327810,4.88826393,1250.7,1250.6,1.19698539]
[1672960329380,8.09606393,1250.7,1250.6,1.19698539]
[1672960330545,11.08143098,1250.7,1250.6,1.19698539]
[1672960331071,8.69316705,1250.7,1250.6,1.19698539]
[1672960333171,5.7078,1250.7,1250.6,1.19698539]
[1672960333897,8.68877391,1250.7,1250.6,1.19698539]
[1672960334325,13.6938,1250.7,1250.6,1.19698539]
[1672960335801,10.486,1250.7,1250.6,1.19698539]
[1672960336010,8.68806063,1250.7,1250.6,1.19698539]
[1672960337374,8.68768902,1250.7,1250.6,1.19698539]
[1672960338643,5.7078,1250.7,1250.6,1.19698539]
[1672960339371,5.47998256,1250.7,1250.6,1.19698539]
[1672960339689,8.68778256,1250.7,1250.6,1.19698539]
[1672960340746,5.7078,1250.7,1250.6,1.19698539]
[1672960342950,9.28792416,1250.7,1250.6,1.19698539]
[1672960343267,11.6674,1250.6,1250.2,1.19698267]
[1672960343478,4.99568019,1250.3,1250.2,2.5]
[1672960344207,7.37952044,1250.3,1250.2,2.5]
[1672960344416,5.59164025,1250.3,1250.2,2.5]
[1672960344633,4.9956733,1250.3,1250.2,2.5]
[1672960344843,5.59164025,1250.3,1250.2,2.5]
[1672960345367,7.37941691,1250.3,1250.2,2.5]
[1672960345680,4.99557666,1250.3,1250.2,2.5]
[1672960346414,7.37941691,1250.3,1250.2,2.5]
[1672960346732,4.99557666,1250.3,1250.2,2.5]
[1672960349354,4.99557666,1250.3,1250.1,5.49001252]
[1672960349564,4.99557666,1250.3,1250.1,3.69698267]
[1672960351040,7.37941691,1250.3,1250.1,3.69698267]
[1672960351463,4.99557666,1250.3,1250.1,3.69698267]
[1672960351886,4.99557666,1250.3,1250.0,5.90402985]
[1672960351887,2.38384025,1250.2,1250.0,1.111]
[1672960352102,4.99478792,1250.1,1250.0,1.111]
[1672960352312,8.09164025,1250.1,1250.0,1.111]
[1672960353154,9.87863406,1250.1,1250.0,1.111]
[1672960353362,7.49479381,1250.1,1250.0,1.111]
[1672960353888,4.99479381,1250.1,1250.0,1.111]
[1672960354199,1.78699381,1250.2,1250.0,1.111]
[1672960354408,3.2078,1250.1,1250.0,3.611]
[1672960354608,4.99479381,1250.3,1250.0,6.60101252]
[1672960354821,7.49479381,1250.3,1250.1,2.5]
[1672960355038,7.49479381,1250.3,1250.1,3.69698267]
[1672960355250,1.78699381,1250.4,1250.1,5.49001252]
[1672960355459,1.78699381,1250.4,1250.2,1.19698267]
[1672960355665,1.78699381,1250.4,1250.3,2.5]
[1672960356827,4.28699381,1250.4,1250.3,2.5]
[1672960357035,1.78699381,1250.4,1250.3,2.5]
[1672960357986,4.28699381,1250.4,1250.3,2.5]
[1672960358188,4.28699381,1250.4,1250.2,1.19698267]
[1672960358815,4.28699381,1250.4,1250.1,5.49001252]
[1672960359134,2.5,1250.2,1250.1,3.69698267]
[1672960359344,1.78699381,1250.3,1250.1,3.69698267]
[1672960359557,6.67083406,1250.4,1250.1,5.49001252]
[1672960359759,4.28699381,1250.4,1250.1,5.49001252]
[1672960359969,6.67083406,1250.4,1250.1,5.49001252]
[1672960360293,4.28699381,1250.4,1250.1,5.49001252]
[1672960360496,4.28699381,1250.4,1250.2,1.19698267]
[1672960360707,4.28699381,1250.4,1250.3,2.5]
[1672960363338,6.67083406,1250.4,1250.3,2.5]
[1672960363557,4.88384025,1250.4,1250.2,1.19698267]
[1672960363759,1.78757172,1250.3,1250.2,1.19698267]
[1672960364176,4.99537172,1250.3,1250.1,5.49001252]
[1672960364498,2.5,1250.2,1250.1,3.69698267]
[1672960364912,4.28757172,1250.2,1250.0,6.60101252]
[1672960366284,4.28757172,1250.2,1250.1,1.19698267]
[1672960366494,1.78757172,1250.2,1250.1,1.19698267]
[1672960367123,4.28757172,1250.2,1250.1,1.19698267]
[1672960368168,1.78757172,1250.2,1250.1,1.19698267]
[1672960369224,4.28757172,1250.2,1250.1,1.19698267]
[1672960369431,6.67141197,1250.2,1250.1,1.19698267]
[1672960370488,4.28757172,1250.2,1250.1,1.19698267]
[1672960371113,4.99537172,1250.2,1250.1,1.19698267]
[1672960371327,7.37921197,1250.2,1250.1,1.19698267]
[1672960372485,7.37921197,1250.2,1250.1,2.99001252]
[1672960372691,7.37921197,1250.2,1250.1,1.19698267]
[1672960373009,7.37921197,1250.2,1250.1,2.99001252]
[1672960373323,4.17141197,1250.2,1250.1,2.99001252]
[1672960376164,1.78757172,1250.2,1250.1,1.79302985]
[1672960376367,1.78757172,1250.2,1250.1,4.19025228]
[1672960378267,1.78757172,1250.2,1250.1,4.89722243]
[1672960379316,1.78757172,1250.2,1250.1,6.31493129]
[1672960381527,1.78757172,1250.2,1250.1,9.30665252]
[1672960382151,1.78757172,1250.2,1250.1,6.31493129]
[1672960382367,1.78757172,1250.2,1250.1,9.30665252]
[1672960383729,1.78757172,1250.2,1250.1,6.31493129]
[1672960387510,4.17141197,1250.3,1250.1,6.90943009]
[1672960387828,5.36840812,1250.4,1250.3,1.1814]
[1672960388140,2.3886078,1250.5,1250.3,10.58491704]
[1672960388345,2.3886078,1250.6,1250.4,7.934244]
[1672960388560,2.3886078,1250.7,1250.5,6.31269036]
[1672960388770,2.3886078,1250.7,1250.6,4.29637543]
[1672960389196,5.36840812,1250.8,1250.6,5.49252311]
[1672960389406,5.36840812,1250.8,1250.6,3.69614768]
[1672960390249,2.3886078,1250.8,1250.6,5.49252311]
[1672960390676,2.3886078,1250.8,1250.6,8.70032311]
[1672960391196,2.3886078,1250.8,1250.6,6.90394768]
[1672960392777,2.3886078,1250.8,1250.6,14.88994768]
[1672960393096,2.3886078,1250.9,1250.7,1.19614768]
[1672960393305,4.77580073,1251.0,1250.7,1.19614768]
[1672960393508,4.77580073,1251.0,1250.8,2.5]
[1672960394981,7.75560105,1251.0,1250.8,2.5]
[1672960395196,4.77580073,1251.0,1250.8,2.5]
[1672960397186,2.38719293,1251.0,1250.8,2.5]
[1672960397818,2.38719293,1251.0,1250.8,10.486]
[1672960398025,2.38719293,1251.0,1250.9,11.1938]
[1672960399510,2.38719293,1251.0,1250.9,7.986]
[1672960399718,2.38719293,1251.0,1250.9,11.1938]
[1672960400352,2.38719293,1251.0,1250.9,7.986]
[1672960401921,2.38719293,1251.0,1250.9,10.486]
[1672960403404,2.38719293,1251.0,1250.9,13.6938]
[1672960404451,2.38719293,1251.0,1250.9,10.486]
[1672960419061,8.0964078,1251.3,1250.9,10.486]
[1672960419374,8.0964078,1251.3,1251.0,2.5]
[1672960421258,2.3886078,1251.3,1251.0,10.486]
[1672960421475,3.5700078,1251.4,1251.1,1.19614768]
[1672960421678,5.5964078,1251.6,1251.2,12.38994768]
[1672960421892,5.5964078,1251.6,1251.3,2.5]
[1672960422944,8.0964078,1251.6,1251.3,2.5]
[1672960423577,5.5964078,1251.6,1251.3,2.5]
[1672960424106,4.8886078,1251.6,1251.3,2.5]
[1672960424416,2.3886078,1251.6,1251.3,2.5]
[1672960425056,7.86840812,1251.7,1251.3,2.5]
[1672960425370,2.5,1251.5,1251.3,2.5]
[1672960425779,2.3886078,1251.7,1251.4,3.2078]
[1672960425994,2.3886078,1251.7,1251.4,11.1938]
[1672960426209,2.3886078,1251.7,1251.5,2.5]
[1672960426735,4.8886078,1251.7,1251.5,2.5]
[1672960426942,2.3886078,1251.7,1251.5,2.5]
[1672960427155,8.57620812,1251.8,1251.5,2.5]
[1672960427363,2.3886078,1251.7,1251.5,10.486]
[1672960427574,4.8886078,1251.7,1251.5,10.486]
[1672960427783,2.3886078,1251.7,1251.5,10.486]
[1672960428730,4.8886078,1251.7,1251.5,10.486]
[1672960428939,2.5,1251.6,1251.4,4.40394768]
[1672960429154,2.5,1251.6,1251.5,2.5]
[1672960430301,4.8886078,1251.7,1251.5,2.5]
[1672960433671,2.3886078,1251.7,1251.5,2.5]
[1672960433875,2.3886078,1251.7,1251.5,5.7078]
[1672960434083,11.07620812,1251.8,1251.5,5.7078]
[1672960434300,2.3886078,1251.7,1251.5,5.7078]
[1672960434823,2.5,1251.7,1251.5,2.5]
[1672960435036,2.5,1251.7,1251.5,5.7078]
[1672960435770,11.07620812,1251.8,1251.5,5.7078]
[1672960436398,8.0964078,1251.8,1251.5,13.6938]
[1672960437557,4.8886078,1251.8,1251.5,13.6938]
[1672960438492,2.3886078,1251.9,1251.5,14.88994768]
[1672960439343,2.3886078,1251.9,1251.5,13.6938]
[1672960440289,4.8886078,1251.9,1251.5,13.6938]
[1672960441332,2.3886078,1251.9,1251.5,13.6938]
[1672960441548,2.5,1251.9,1251.8,2.5]
[1672960445121,4.8886078,1252.0,1251.8,2.5]
[1672960446690,2.5,1251.9,1251.8,10.486]
[1672960447109,2.5,1252.0,1251.8,10.486]
[1672960447320,4.8886078,1252.1,1251.8,10.486]
[1672960447639,2.5,1252.1,1251.8,10.486]
[1672960448695,4.8886078,1252.1,1251.8,10.486]
[1672960449008,2.5,1252.1,1251.8,10.486]
[1672960450373,2.5,1252.1,1251.9,11.1938]
[1672960450582,4.8886078,1252.2,1251.9,11.1938]
[1672960450795,4.8886078,1252.2,1252.0,2.5]
[1672960451108,2.5,1252.1,1252.0,2.5]
[1672960455418,7.86840812,1252.2,1252.0,2.5]
[1672960455836,2.3886078,1252.1,1252.0,2.5]
[1672960456051,2.5,1252.1,1252.0,2.5]
[1672960457209,4.8886078,1252.1,1252.0,2.5]
[1672960458888,7.86840812,1252.2,1252.0,2.5]
[1672960459310,4.8886078,1252.1,1252.0,2.49299546]
[1672960461406,5.47980032,1252.1,1252.0,2.49299546]
[1672960461618,5.47980032,1252.1,1251.9,11.1938]
[1672960461828,5.47980032,1252.1,1252.0,2.5]
[1672960462354,8.68760032,1252.1,1251.8,2.5]
[1672960462565,2.38438499,1252.0,1251.8,2.5]
[1672960462774,2.5,1251.9,1251.8,2.5]
[1672960463195,4.88438499,1251.9,1251.8,2.5]
[1672960464139,2.38438499,1252.0,1251.8,10.486]
[1672960464349,7.86418531,1252.1,1251.8,11.68214768]
[1672960464659,2.38438499,1252.0,1251.8,10.486]
[1672960464865,2.5,1251.9,1251.8,2.5]
[1672960465077,4.88438499,1251.9,1251.8,2.5]
[1672960465611,4.88438499,1251.9,1251.8,10.486]
[1672960466339,2.38438499,1251.9,1251.8,10.486]
[1672960470553,2.38438499,1251.9,1251.8,11.68214768]
[1672960470972,2.38438499,1251.9,1251.8,10.486]
[1672960471178,2.38438499,1251.9,1251.8,11.68214768]
[1672960473389,5.36418531,1251.9,1251.8,11.68214768]
[1672960475287,2.97980032,1251.9,1251.8,11.68214768]
[1672960476238,5.37035622,1251.9,1251.8,13.47852311]
[1672960476443,5.37037033,1251.9,1251.8,13.47852311]
[1672960476659,2.97980032,1251.9,1251.8,11.68214768]
[1672960477073,2.97980032,1251.9,1251.8,13.47852311]
[1672960482012,5.37300407,1252.0,1251.8,11.90178991]
[1672960482224,2.39320375,1252.0,1251.9,17.99646285]
[1672960482548,5.37300407,1252.0,1251.9,13.5880021]
[1672960483064,2.39320375,1252.0,1251.9,13.5880021]
[1672960484541,2.39320375,1252.0,1251.9,15.3832831]
[1672960484754,2.39320375,1252.0,1251.9,12.1754831]
[1672960484958,2.39320375,1252.0,1251.9,10.3802021]
[1672960485272,2.39320375,1252.0,1251.9,12.17530445]
[1672960485900,2.39320375,1252.0,1251.9,10.3802021]
[1672960486749,5.37300407,1252.0,1251.9,9.78112238]
[1672960487164,2.39320375,1252.0,1251.9,12.17532448]
[1672960487368,2.39320375,1252.0,1251.9,15.38312448]
[1672960487795,2.39320375,1252.0,1251.9,13.5880021]
[1672960488429,2.39320375,1252.0,1251.9,15.38273231]
[1672960489586,2.39320375,1252.0,1251.9,12.98853021]
[1672960490216,5.37300407,1252.0,1251.9,12.98853021]
[1672960490953,2.39320375,1252.0,1251.9,12.98853021]
[1672960491478,2.39320375,1252.0,1251.9,9.78073021]
[1672960491680,2.39320375,1252.0,1251.9,12.98853021]
[1672960493477,2.39320375,1252.0,1251.9,14.18463519]
[1672960494426,5.37300407,1252.1,1251.9,16.79841926]
[1672960494629,5.37300407,1252.1,1252.0,10.97604495]
[1672960495263,5.37300407,1252.1,1252.0,9.18201798]
[1672960496740,2.97980032,1252.1,1252.0,9.18201798]
[1672960496947,5.37090152,1252.1,1252.0,9.18201798]
[1672960497993,2.97980032,1252.1,1252.0,9.18201798]
[1672960498204,5.37071871,1252.1,1252.0,9.18201798]
[1672960501250,2.97980032,1252.1,1252.0,9.18201798]
[1672960505247,2.97980032,1252.1,1251.9,14.18384495]
[1672960505454,2.39061885,1252.0,1251.9,14.18384495]
[1672960505765,4.89061885,1252.0,1251.9,14.18384495]
[1672960506403,4.89061885,1252.0,1251.9,12.38981798]
[1672960506608,4.89061885,1252.0,1251.9,14.18384495]
[1672960507034,4.89061885,1252.0,1251.9,12.38981798]
[1672960507347,2.39061885,1252.0,1251.9,14.18384495]
[1672960507763,5.37041917,1252.0,1251.9,14.18384495]
[1672960507974,2.39061885,1252.0,1251.9,14.18384495]
[1672960508395,2.39061885,1252.0,1251.9,12.98782697]
[1672960509032,2.39061885,1252.0,1251.9,15.38202907]
[1672960509236,2.39061885,1252.0,1251.9,12.98782697]
[1672960510085,2.39061885,1252.0,1251.9,9.78002697]
[1672960510295,2.39061885,1252.0,1251.9,12.98782697]
[1672960510819,2.97980032,1252.2,1252.0,10.486]
[1672960511021,2.97980032,1252.3,1252.2,7.986]
[1672960511238,2.97980032,1252.4,1252.2,10.97483639]
[1672960511443,2.97980032,1252.4,1252.3,3.69555543]
[1672960511657,2.97980032,1252.4,1252.3,2.5]
[1672960511970,5.47980032,1252.4,1252.3,2.5]
[1672960512181,5.47980032,1252.4,1252.3,11.68155543]
[1672960512395,2.97980032,1252.4,1252.3,11.68155543]
[1672960512804,2.5,1252.3,1252.2,3.69555543]
[1672960513332,5.47980032,1252.3,1252.2,3.69555543]
[1672960513860,5.47980032,1252.3,1252.2,1.19555543]
[1672960514282,2.5,1252.3,1252.1,1.19555543]
[1672960514493,6.19586766,1252.2,1252.0,9.18155543]
[1672960514704,5.48806766,1252.1,1252.0,1.19555543]
[1672960524906,2.5,1252.1,1252.0,1.19555543]
[1672960525112,5.49080287,1252.1,1252.0,1.19555543]
[1672960527010,2.5,1252.1,1252.0,1.19555543]
[1672960527218,5.49071856,1252.1,1252.0,1.19555543]
[1672960528588,5.49071856,1252.1,1252.0,2.98883639]
[1672960528896,5.49071856,1252.1,1252.0,1.19555543]
[1672960531536,2.5,1252.1,1252.0,1.19555543]
[1672960532373,5.49075199,1252.1,1252.0,1.19555543]
[1672960532576,5.49076712,1252.1,1252.0,1.19555543]
[1672960532785,2.5,1252.1,1252.0,1.19555543]
[1672960533209,5.4908871,1252.1,1252.0,1.19555543]
[1672960533635,2.5,1252.1,1252.0,1.19555543]
[1672960534047,10.2525719,1252.1,1251.8,1.79328096]
[1672960534361,6.78356038,1252.0,1251.7,1.79328096]
[1672960534578,6.19807689,1251.8,1251.7,1.79328096]
[1672960534780,6.19807689,1251.8,1251.6,2.39103478]
[1672960534995,2.99027689,1251.7,1251.4,2.39103478]
[1672960535206,2.5,1251.6,1251.5,2.39103478]
[1672960535524,2.5,1251.6,1251.4,7.88370562]
[1672960535730,2.5,1251.6,1251.5,2.39103478]
[1672960535936,2.5,1251.6,1251.5,6.30716461]
[1672960536146,2.5,1251.6,1251.5,6.30716548]
[1672960536463,2.5,1251.6,1251.5,6.30717893]
[1672960536670,2.5,1251.6,1251.5,2.5]
[1672960537087,2.5,1251.6,1251.5,4.89103478]
[1672960537305,2.5,1251.7,1251.5,4.89103478]
[1672960539091,3.2078,1251.8,1251.5,4.89103478]
[1672960539300,5.49027689,1251.9,1251.6,8.09883478]
[1672960539503,2.5,1251.9,1251.6,8.09883478]
[1672960539718,2.5,1251.9,1251.7,2.5]
[1672960540876,4.88806799,1251.9,1251.7,2.5]
[1672960556959,4.88806799,1251.9,1251.6,11.09150562]
[1672960557276,2.5,1251.7,1251.6,4.89103478]
[1672960558854,2.38806799,1251.8,1251.6,4.89103478]
[1672960559061,2.38806799,1251.8,1251.7,2.5]
[1672960559272,5.49027689,1251.9,1251.7,2.5]
[1672960559273,4.88806799,1251.9,1251.7,2.5]
[1672960561270,2.5,1251.9,1251.7,2.5]
[1672960561892,2.5,1251.9,1251.6,11.09150562]
[1672960562103,2.5,1251.9,1251.7,2.5]
[1672960562312,5.7078,1251.9,1251.7,2.5]
[1672960566313,2.39069414,1251.8,1251.7,2.5]
[1672960566516,2.39069414,1251.8,1251.6,7.8808415]
[1672960566829,2.5,1251.7,1251.6,5.3808415]
[1672960572301,5.7078,1251.7,1251.6,5.3808415]
[1672960573452,2.5,1251.7,1251.6,5.3808415]
[1672960573771,5.7078,1251.7,1251.6,2.39103478]
[1672960574507,2.5,1251.7,1251.6,2.39103478]
[1672960574822,5.7078,1251.7,1251.6,2.39103478]
[1672960576397,5.7078,1251.7,1251.4,3.59246121]
[1672960576607,3.2078,1251.5,1251.4,3.59246121]
[1672960580708,5.5953806,1251.5,1251.1,6.19572485]
[1672960580918,5.5953806,1251.5,1251.1,8.69572485]
[1672960581130,2.5,1251.4,1251.1,5.7078]
[1672960581548,5.7078,1251.4,1251.1,2.5]
[1672960582079,5.7078,1251.4,1251.0,7.37712485]
[1672960582280,5.7078,1251.4,1251.1,3.91649499]
[1672960582494,5.7078,1251.4,1251.2,2.5]
[1672960583967,5.7078,1251.4,1251.1,2.5]
[1672960589015,3.2078,1251.2,1251.1,2.5]
[1672960589226,3.2078,1251.2,1251.0,3.6814]
[1672960590070,2.5,1251.1,1251.0,3.6814]
[1672960590382,2.18521353,1251.1,1251.0,5.09793912]
[1672960590796,2.18521353,1251.1,1251.0,2.5]
[1672960592164,2.18521353,1251.1,1250.9,19.1938]
[1672960592379,2.18521353,1251.1,1251.0,2.5]
[1672960594906,2.18521353,1251.1,1251.0,4.29008156]
[1672960595535,3.2078,1251.2,1251.0,4.29008156]
[1672960596164,2.5,1251.1,1251.0,4.29008156]
[1672960596577,2.5,1251.1,1251.0,1.79008156]
[1672960596895,2.5,1251.1,1251.0,4.29008156]
[1672960599317,3.2078,1251.2,1251.0,4.29008156]
[1672960599522,8.0953806,1251.4,1251.1,1.79008156]
[1672960599740,5.7078,1251.4,1251.1,4.29008156]
[1672960599944,5.7078,1251.4,1251.1,7.49788156]
[1672960600157,5.7078,1251.4,1251.2,4.29008156]
[1672960601629,2.5,1251.4,1251.2,4.29008156]
[1672960602896,2.5,1251.4,1251.2,1.79008156]
[1672960604472,4.8875806,1251.4,1251.1,4.29008156]
[1672960604682,5.5953806,1251.3,1251.1,2.5]
[1672960604896,2.5,1251.2,1251.1,2.5]
[1672960605095,2.5,1251.2,1251.0,4.29008156]
[1672960607417,5.7078,1251.2,1251.0,4.29008156]
[1672960609098,5.7078,1251.2,1251.0,6.67978496]
[1672960609309,5.7078,1251.2,1251.1,1.79008156]
[1672960612670,3.2078,1251.2,1251.1,1.79008156]
[1672960612989,3.2078,1251.2,1251.1,4.17978496]
[1672960613305,3.2078,1251.2,1251.1,3.806262]
[1672960613617,4.8875806,1251.3,1251.1,3.806262]
[1672960613829,2.5,1251.3,1251.2,4.29416324]
[1672960614243,4.8875806,1251.3,1251.2,4.29416324]
[1672960614676,8.0953806,1251.3,1251.2,4.29416324]
[1672960614984,8.69227575,1251.3,1251.1,4.18386664]
[1672960615202,2.38871301,1251.2,1251.1,1.79416324]
[1672960615819,5.59651301,1251.2,1251.1,1.79416324]
[1672960616779,5.59651301,1251.2,1251.1,4.18386664]
[1672960617090,5.59651301,1251.2,1251.1,1.79416324]
[1672960617307,5.59651301,1251.2,1251.1,4.18386664]
[1672960617725,5.59651301,1251.2,1251.1,1.79416324]
[1672960618979,5.59651301,1251.2,1251.1,4.18386664]
[1672960619506,2.38871301,1251.2,1251.1,4.18386664]
[1672960619715,5.59651301,1251.2,1251.1,4.18386664]
[1672960621926,5.59651301,1251.2,1251.1,3.80633838]
[1672960622775,2.38871301,1251.2,1251.1,3.80633838]
[1672960622980,5.59651301,1251.2,1251.1,3.80633838]
[1672960623186,2.38871301,1251.2,1251.1,3.80633838]
[1672960623399,5.59651301,1251.2,1251.1,3.80633838]
[1672960624141,5.59651301,1251.2,1251.1,2.3897034]
[1672960624457,7.87318876,1251.3,1251.1,3.80635966]
[1672960624668,2.38871301,1251.3,1251.2,1.79584598]
[1672960624879,2.38871301,1251.3,1251.2,4.8897034]
[1672960625193,2.38871301,1251.3,1251.2,6.30621297]
[1672960625399,11.08098876,1251.4,1251.2,6.30621297]
[1672960625614,8.69227575,1251.4,1251.3,4.29569031]
[1672960627189,5.48447575,1251.4,1251.3,4.29569031]
[1672960627402,7.87525651,1251.4,1251.3,4.29569031]
[1672960628143,7.87525651,1251.4,1251.3,1.79569031]
[1672960628874,5.37525651,1251.4,1251.3,1.79569031]
[1672960629190,2.39078076,1251.4,1251.3,4.8897034]
[1672960629393,2.39078076,1251.5,1251.4,2.5]
[1672960629608,2.39078076,1251.5,1251.4,4.29505949]
[1672960630663,2.39078076,1251.5,1251.4,4.8897034]
[1672960631496,2.39078076,1251.6,1251.4,6.6838144]
[1672960631706,2.39078076,1251.6,1251.5,1.794111]
[1672960632345,4.89078076,1251.6,1251.5,1.794111]
[1672960632660,2.39078076,1251.6,1251.5,1.794111]
[1672960633186,2.39078076,1251.6,1251.4,6.6838144]
[1672960633392,8.58305651,1251.7,1251.5,1.794111]
[1672960633603,2.39078076,1251.6,1251.5,1.794111]
[1672960633814,4.89078076,1251.6,1251.5,1.794111]
[1672960634345,2.5,1251.6,1251.5,1.794111]
[1672960634556,2.5,1251.6,1251.5,5.001911]
[1672960634874,8.58305651,1251.7,1251.5,5.001911]
[1672960635078,5.59858076,1251.7,1251.6,2.5]
[1672960635284,8.09858076,1251.7,1251.6,2.5]
[1672960635708,11.08305651,1251.7,1251.6,2.5]
[1672960636762,8.09858076,1251.7,1251.6,2.5]
[1672960637704,8.09858076,1251.7,1251.5,3.2078]
[1672960639390,4.89078076,1251.7,1251.4,4.294111]
[1672960639914,4.89078076,1251.7,1251.4,7.501911]
[1672960641274,2.5,1251.6,1251.4,7.501911]
[1672960644638,2.5,1251.6,1251.4,4.294111]
[1672960645483,4.89078076,1251.6,1251.3,12.280111]
[1672960645794,5.59858076,1251.5,1251.2,4.1838144]
[1672960646004,2.5,1251.3,1251.2,2.5]
[1672960647587,5.7078,1251.3,1251.2,2.5]
[1672960649793,5.7078,1251.3,1251.1,4.294111]
[1672960650005,8.09858076,1251.3,1251.1,4.294111]
[1672960650315,8.09858076,1251.3,1251.1,2.5]
[1672960650951,8.09858076,1251.3,1251.1,4.294111]
[1672960651900,2.5,1251.3,1251.1,4.294111]
[1672960652210,5.7078,1251.3,1251.1,4.294111]
[1672960652736,3.2078,1251.3,1251.1,4.294111]
[1672960653471,7.87525651,1251.4,1251.1,4.294111]
[1672960653784,2.5,1251.2,1251.1,4.294111]
[1672960653985,2.5,1251.2,1251.1,5.48862725]
[1672960654201,3.2078,1251.3,1251.1,5.48862725]
[1672960654413,3.2078,1251.3,1251.2,1.19443076]
[1672960655570,4.89078076,1251.4,1251.2,1.19443076]
[1672960655775,8.58305651,1251.5,1251.2,2.98854176]
[1672960655995,2.5,1251.4,1251.3,3.69443076]
[1672960657246,2.5,1251.4,1251.3,5.48854176]
[1672960657457,5.59858076,1251.5,1251.3,5.48854176]
[1672960657674,5.59858076,1251.5,1251.3,3.69443076]
[1672960657984,2.5,1251.4,1251.3,3.69443076]
[1672960659358,2.5,1251.4,1251.3,5.48854176]
[1672960659557,5.59858076,1251.5,1251.3,3.69443076]
[1672960659870,2.5,1251.4,1251.3,5.48284923]
[1672960660081,2.5,1251.4,1251.3,3.68873823]
[1672960660503,5.59858076,1251.5,1251.3,3.68873823]
[1672960660712,5.59858076,1251.5,1251.3,5.48284923]
[1672960661770,5.59858076,1251.5,1251.3,3.68873823]
[1672960662931,5.59858076,1251.5,1251.3,5.48284923]
[1672960663447,5.59858076,1251.5,1251.3,7.501911]
[1672960663666,5.59492681,1251.5,1251.3,7.501911]
[1672960666607,5.59492681,1251.5,1251.3,9.8916144]
[1672960667871,2.39078076,1251.5,1251.3,9.8916144]
[1672960668188,4.89078076,1251.5,1251.3,9.8916144]
[1672960668502,4.89078076,1251.5,1251.3,6.6838144]
[1672960668703,4.89078076,1251.5,1251.3,9.8916144]
[1672960669130,2.5,1251.5,1251.3,9.8916144]
[1672960669343,4.89078076,1251.5,1251.3,9.8916144]
[1672960671752,4.89078076,1251.5,1251.3,6.6838144]
[1672960671967,4.89078076,1251.5,1251.3,9.8916144]
[1672960672180,2.39078076,1251.5,1251.3,9.8916144]
[1672960672810,2.39078076,1251.5,1251.3,6.6838144]
[1672960673012,2.39078076,1251.5,1251.3,9.8916144]
[1672960673755,2.39078076,1251.5,1251.3,6.6838144]
[1672960675225,2.39078076,1251.5,1251.4,1.794111]
[1672960675439,8.58305651,1251.6,1251.4,1.794111]
[1672960675644,2.39078076,1251.5,1251.4,1.794111]
[1672960675854,4.89078076,1251.5,1251.4,1.794111]
[1672960676170,2.5,1251.5,1251.4,1.794111]
[1672960676594,5.37525651,1251.6,1251.4,1.794111]
[1672960676905,5.37525651,1251.6,1251.5,2.5]
[1672960677538,2.98447575,1251.6,1251.5,2.5]
[1672960678273,5.37308567,1251.6,1251.5,2.5]
[1672960678695,2.98447575,1251.6,1251.5,2.5]
[1672960679854,6.19227575,1251.6,1251.5,2.5]
[1672960680691,8.58136344,1251.6,1251.5,2.5]
[1672960681945,5.37356344,1251.6,1251.5,2.5]
[1672960682583,2.98447575,1251.6,1251.5,2.5]
[1672960686694,2.38981376,1251.6,1251.5,4.294111]
[1672960690050,4.88981376,1251.6,1251.5,4.294111]
[1672960690364,5.37428951,1251.6,1251.5,4.294111]
[1672960690884,2.38981376,1251.6,1251.5,4.294111]
[1672960692573,2.38981376,1251.6,1251.5,6.6838144]
[1672960692779,2.38981376,1251.6,1251.5,7.501911]
[1672960692987,2.38981376,1251.6,1251.5,16.0835034]
[1672960693203,5.37428951,1251.7,1251.5,17.49963737]
[1672960693411,2.38981376,1251.6,1251.5,16.0835034]
[1672960693624,2.38981376,1251.6,1251.5,17.49964847]
[1672960694987,2.38981376,1251.6,1251.5,14.29184847]
[1672960695200,2.38981376,1251.6,1251.5,12.17076842]
[1672960695513,5.37428951,1251.6,1251.5,9.78106502]
[1672960697203,2.38981376,1251.6,1251.5,9.78106502]
[1672960697830,2.38981376,1251.6,1251.5,12.17076842]
[1672960698148,2.38981376,1251.6,1251.5,9.78106502]
[1672960698569,2.38981376,1251.6,1251.5,1.79506502]
[1672960698770,2.38981376,1251.6,1251.5,4.29506502]